fUST/lending_fUST_20251014
["ID","MTS","AMOUNT","RATE_DAILY","PERIOD"]
[391261843,1760449840556,-151.0,0.00027912,2]
[391261844,1760449840566,-151.0,0.00027912,2]
[391261845,1760449840575,-1000.0,0.00027912,2]
[391261846,1760449840584,-476.17714604,0.00027912,2]
[391261847,1760449840594,-1000.0,0.00027912,2]
[391261848,1760449840603,-151.0,0.00027912,2]
[391261849,1760449840612,-151.0,0.00027912,2]
[391261850,1760449840622,-151.0,0.00027912,2]
[391261851,1760449840631,-1000.0,0.00027912,2]
[391261852,1760449840641,-151.0,0.00027912,2]
[391261853,1760449840650,-1000.0,0.00027912,2]
[391261854,1760449840659,-151.0,0.00027912,2]
[391261855,1760449840669,-151.0,0.00027912,2]
[391261856,1760449840678,-151.0,0.00027912,2]
[391261857,1760449840687,-1000.0,0.00027912,2]
[391261858,1760449840696,-1000.0,0.00027912,2]
[391261859,1760449840706,-151.0,0.00027912,2]
[391261860,1760449840715,-151.0,0.00027912,2]
[391261861,1760449840728,-157.77191756,0.00027912,2]
[391261862,1760449840737,-1000.0,0.00027912,2]
[391261863,1760449840746,-1000.0,0.00027912,2]
[391261864,1760449840755,-151.0,0.00027912,2]
[391261865,1760449840764,-151.0,0.00027912,2]
[391261866,1760449840774,-1000.0,0.00027912,2]
[391261867,1760449840784,-151.0,0.00027912,2]
[391261868,1760449840793,-151.0,0.00027912,2]
[391261869,1760449840807,-1000.0,0.00027912,2]
[391261870,1760449840822,-151.0,0.00027912,2]
[391261871,1760449840831,-151.0,0.00027912,2]
[391261872,1760449840840,-1000.0,0.00027912,2]
[391261873,1760449840849,-151.0,0.00027912,2]
[391261874,1760449840859,-151.0,0.00027912,2]
[391261875,1760449840868,-1000.0,0.00027912,2]
[391261876,1760449840877,-151.0,0.00027912,2]
[391261877,1760449840886,-151.0,0.00027912,2]
[391261878,1760449840896,-151.0,0.00027912,2]
[391261879,1760449840905,-151.0,0.00027912,2]
[391261880,1760449840914,-162.38071901,0.00027912,2]
[391261881,1760449840924,-151.0,0.00027912,2]
[391261882,1760449840932,-151.0,0.00027912,2]
[391261883,1760449840942,-151.0,0.00027912,2]
[391261884,1760449840951,-151.0,0.00027912,2]
[391261885,1760449840960,-151.0,0.00027912,2]
[391261886,1760449840969,-151.0,0.00027912,2]
[391261887,1760449840978,-279.53150536,0.00027912,2]
[391261888,1760449840987,-151.0,0.00027912,2]
[391261889,1760449840997,-250.0,0.00027912,2]
[391261890,1760449841006,-151.0,0.00027912,2]
[391261891,1760449841015,-250.0,0.00027912,2]
[391261892,1760449841024,-250.0,0.00027912,2]
[391261893,1760449841033,-250.0,0.00027912,2]
[391261894,1760449841043,-18603.8837,0.00027912,2]
[391261895,1760449841054,-250.0,0.00027912,2]
[391261896,1760449841064,-250.0,0.00027912,2]
[391261897,1760449841074,-250.0,0.00027912,2]
[391261898,1760449841083,-250.0,0.00027912,2]
[391261899,1760449841093,-250.0,0.00027912,2]
[391261900,1760449841102,-250.0,0.00027912,2]
[391261901,1760449841111,-250.0,0.00027912,2]
[391261902,1760449841120,-151.0,0.00027912,2]
[391261903,1760449841130,-250.0,0.00027912,2]
[391261904,1760449841139,-151.0,0.00027912,2]
[391261905,1760449841149,-150.39,0.00027927,15]
[391261906,1760449841158,-2105.41764886,0.00027967,2]
[391261907,1760449841167,-3162.14,0.00028,2]
[391261908,1760449841177,-150.39,0.00028027,15]
[391261909,1760449841186,-4609.0,0.00028065,2]
[391261910,1760449841195,-1200.0,0.00028101,7]
[391261911,1760449841204,-150.39,0.00028127,15]
[391261912,1760449841213,-961.50540398,0.00028136,2]
[391261913,1760449841223,-162.9892445,0.00028168,30]
[391261914,1760449841232,-588.8145586,0.00028168,30]
[391261915,1760449841242,-378.7666652,0.00028175,30]
[391261916,1760449841251,-153.0,0.00028175,30]
[391261917,1760449841260,-189.8496045,0.00028175,30]
[391261918,1760449841270,-587.7055362,0.00028175,30]
[391261919,1760449841369,-1000.0,0.00028195,5]
[391261920,1760449841379,-150.39,0.00028227,15]
[391261921,1760449841388,-150.39,0.00028327,15]
[391261922,1760449841398,-158.0,0.00028411,29]
[391261923,1760449841408,-150.43,0.00028427,15]
[391261924,1760449841417,-19292.2273969,0.0002846,2]
[391261925,1760449841426,-52060.51,0.000285,7]
[391261926,1760449841436,-1186.88393948,0.00028528,2]
[391261927,1760449841445,-232.0,0.00028557,2]
[391261928,1760449841455,-981.0,0.00028603,2]
[391261929,1760449841464,-411.0,0.00028603,2]
[391261930,1760449841473,-411.0,0.00028603,2]
[391261931,1760449841482,-631.0,0.00028603,2]
[391261932,1760449841491,-2161.0,0.00028603,2]
[391261933,1760449841501,-737576.75147942,0.0002871,4]
[391261934,1760449841510,-151.0,0.0002871,30]
[391261935,1760449841520,-1005.88257647,0.00028736,2]
[391261936,1760449841529,-7256.53,0.00028767,6]
[391261937,1760449841539,-160.0,0.00028767,7]
[391261938,1760449841551,-1186.88393948,0.00028838,2]
[391261939,1760449841560,-8584.46262632,0.00028877,2]
[391261940,1760449841570,-1200.0,0.00028923,7]
[391261941,1760449841580,-1000.0,0.00028938,30]
[391261942,1760449841589,-298.0923344,0.0002899,30]
[391261943,1760449841599,-379.699209,0.0002899,30]
[391261944,1760449841608,-403.2567699,0.0002899,30]
[391261945,1760449841618,-193.0437062,0.0002899,30]
[391261946,1760449841627,-35437.0,0.00029,7]
[391261947,1760449841637,-154.98917,0.00029,120]
[391261948,1760449841646,-2000.0,0.00029,4]
[391261949,1760449841655,-1000.01,0.00029,2]
[391261950,1760449841664,-20006.03981059,0.00029008,2]
[391261951,1760449841673,-151.0,0.00029013,30]
[391261952,1760449841682,-175.587904,0.00029013,30]
[391261953,1760449841692,-151.0,0.00029013,30]
[391261954,1760449841701,-151.0,0.00029013,30]
[391261955,1760449841711,-175.020845,0.00029013,30]
[391261956,1760449841724,-151.0,0.00029013,30]
[391261957,1760449841738,-151.0,0.00029013,30]
[391261958,1760449841748,-595.9018766,0.00029013,30]
[391261959,1760449841757,-325.8265374,0.00029013,30]
[391261960,1760449841769,-153.0,0.00029013,30]
[391261961,1760449841779,-588.8145586,0.00029013,30]
[391261962,1760449841788,-153.0,0.00029013,30]
[391261963,1760449841801,-588.8145586,0.00029013,30]
[391261964,1760449841811,-153.0,0.00029013,30]
[391261965,1760449841821,-588.8145586,0.00029013,30]
[391261966,1760449841831,-588.8145586,0.00029013,30]
[391261967,1760449841840,-1175.2077066,0.00029013,30]
[391261968,1760449841849,-1145.617801,0.00029013,30]
[391261969,1760449841859,-621.53778855,0.000291,28]
[391261970,1760449841868,-1000.01,0.00029174,2]
[391261971,1760449841878,-218.6594448,0.00029205,30]
[391261972,1760449841887,-3002.0,0.00029238,2]
[391261973,1760449841896,-975.871243,0.00029238,30]
[391261974,1760449841905,-975.871243,0.00029238,30]
[391261975,1760449841914,-975.871243,0.00029238,30]
[391261976,1760449841923,-975.871243,0.00029238,30]
[391261977,1760449841933,-205.23337,0.00029238,30]
[391261978,1760449841941,-294.094483,0.00029238,30]
[391261979,1760449841950,-796.36667178,0.00029261,2]
[391261980,1760449841960,-168.3888056,0.00029281,2]
[391261981,1760449841969,-1186.8839395,0.00029286,2]
[391261982,1760449841978,-166.65301315,0.00029315,5]
[391261983,1760449841987,-2820.425364,0.00029335,2]
[391261984,1760449841997,-1050.25974896,0.00029336,2]
[391261985,1760449842006,-5512.5143424,0.00029366,2]
[391261986,1760449842015,-534.04372413,0.00029435,2]
[391261987,1760449842024,-859.73793883,0.00029435,2]
[391261988,1760449842033,-3435.51280358,0.00029435,2]
[391261989,1760449842042,-151.0,0.00029435,30]
[391261990,1760449842055,-151.0,0.00029435,2]
[391261991,1760449842064,-151.0,0.00029435,30]
[391261992,1760449842073,-163.174092,0.00029435,30]
[391261993,1760449842084,-163.025799,0.00029435,30]
[391261994,1760449842098,-151.0,0.00029435,30]
[391261995,1760449842108,-154.167012,0.00029435,30]
[391261996,1760449842117,-151.0,0.00029435,30]
[391261997,1760449842126,-350.61616096,0.00029435,2]
[391261998,1760449842135,-1401.06217919,0.00029435,2]
[391261999,1760449842144,-151.0,0.00029435,30]
[391262000,1760449842153,-151.0,0.00029435,30]
[391262001,1760449842162,-389.63525,0.00029435,30]
[391262002,1760449842171,-389.63525,0.00029435,30]
[391262003,1760449842180,-389.63525,0.00029435,30]
[391262004,1760449842189,-389.63525,0.00029435,30]
[391262005,1760449842198,-385.31200697,0.00029435,2]
[391262006,1760449842208,-1539.70677987,0.00029435,2]
[391262007,1760449842217,-240.3747753,0.00029466,2]
[391262008,1760449842227,-19100.3533476,0.00029466,2]
[391262009,1760449842235,-20480.1174931,0.00029466,2]
[391262010,1760449842245,-591.9446113,0.00029466,2]
[391262011,1760449842254,-151.0,0.00029466,30]
[391262012,1760449842263,-151.0,0.00029466,30]
[391262013,1760449842272,-600.0,0.00029479,2]
[391262014,1760449842281,-5000.0,0.00029489,30]
[391262015,1760449842290,-5000.0,0.00029489,30]
[391262016,1760449842301,-5000.0,0.00029489,30]
[391262017,1760449842310,-5000.0,0.00029489,30]
[391262018,1760449842319,-5000.0,0.00029489,30]
[391262019,1760449842328,-24138.22701431,0.000295,10]
[391262020,1760449842387,-834.3094557,0.000295,10]
[391262021,1760449842447,-250.0,0.00027912,2]
[391262022,1760449842457,-151.0,0.00027912,2]
[391262023,1760449842466,-250.0,0.00027912,2]
[391262024,1760449842475,-151.0,0.00027912,2]
[391262025,1760449842484,-250.0,0.00027912,2]
[391262026,1760449842493,-212.33504386,0.00027912,2]
[391262027,1760449842502,-250.0,0.00027912,2]
[391262028,1760449842511,-645.64970054,0.0002871,30]
[391262029,1760449842522,-155.41589146,0.0002871,30]
[391262030,1760449842531,-1655592.11624753,0.000295,10]
[391262031,1760449842541,-1459.459,0.000295,120]
[391262032,1760449842550,-163.0,0.000295,7]
[391262033,1760449842559,-166.0,0.000295,7]
[391262034,1760449842569,-163.0,0.000295,7]
[391262035,1760449842578,-165.0,0.000295,7]
[391262036,1760449842588,-166.0,0.000295,7]
[391262037,1760449842598,-312.53686964,0.000295,7]
[391262038,1760449842607,-165.0,0.000295,7]
[391262039,1760449842616,-166.0,0.000295,7]
[391262040,1760449842625,-166.0,0.000295,7]
[391262041,1760449842635,-330.0,0.000295,7]
[391262042,1760449842644,-166.0,0.000295,7]
[391262043,1760449842653,-330.0,0.000295,7]
[391262044,1760449842662,-166.0,0.000295,7]
[391262045,1760449842672,-178.10549809,0.000295,7]
[391262046,1760449842681,-201.0,0.00029507,34]
[391262047,1760449842690,-800.0,0.00029518,2]
[391262048,1760449842701,-201.0,0.0002955,24]
[391262049,1760449842710,-20746.26328358,0.00029556,2]
[391262050,1760449842720,-151.0,0.00029561,30]
[391262051,1760449842732,-402.43064913,0.000297,30]
[391262052,1760449842741,-1200.0,0.00029745,7]
[391262053,1760449842751,-14645.34,0.0002975,2]
[391262054,1760449842760,-160.0,0.00029762,8]
[391262055,1760449842769,-600.0,0.00029786,2]
[391262056,1760449842778,-3002.0,0.000299,7]
[391262057,1760449842787,-1000.0,0.00029922,4]
[391262058,1760449842796,-1094.63692146,0.00029936,2]
[391262059,1760449842810,-8584.46262632,0.00029943,2]
[391262060,1760449842820,-1613.0,0.00029992,2]
[391262061,1760449842830,-200.0,0.00029999,10]
[391262062,1760449842840,-200.0,0.00029999,10]
[391262063,1760449842849,-306.36926638,0.00029999,10]
[391262064,1760449842858,-160.37901532,0.00029999,10]
[391262065,1760449842868,-6000.0,0.0003,60]
[391262066,1760449842877,-1627900.44860055,0.0003,9]
[391262067,1760449842887,-500.74159721,0.0003,4]
[391262068,1760449842896,-155.175145,0.0003,30]
[391262069,1760449842905,-157.896342,0.0003,30]
[391262070,1760449842914,-151.0,0.0003,30]
[391262071,1760449842923,-49222.0,0.0003,14]
[391262072,1760449842932,-151.0,0.0003,30]
[391262073,1760449842942,-183.257069,0.0003,30]
[391262074,1760449842951,-151.0,0.0003,30]
[391262075,1760449842960,-151.0,0.0003,30]
[391262076,1760449842969,-402.43064913,0.0003,3]
[391262077,1760449842979,-389.63525,0.0003,30]
[391262078,1760449842988,-389.63525,0.0003,30]
[391262079,1760449842997,-389.63525,0.0003,30]
[391262080,1760449843006,-389.63525,0.0003,30]
[391262081,1760449843015,-975.871243,0.0003,30]
[391262082,1760449843023,-975.871243,0.0003,30]
[391262083,1760449843032,-975.871243,0.0003,30]
[391262084,1760449843041,-975.871243,0.0003,30]
[391262085,1760449843052,-151.0,0.0003,30]
[391262086,1760449843061,-151.0,0.0003,30]
[391262087,1760449843070,-151.0,0.0003,30]
[391262088,1760449843080,-151.0,0.0003,30]
[391262089,1760449843090,-417.15472785,0.0003,30]
[391262090,1760449843099,-801.065592,0.0003,30]
[391262091,1760449843108,-3399.0,0.00030012,7]
[391262092,1760449843117,-256.0,0.00030022,2]
[391262093,1760449843127,-5888.0,0.00030036,2]
[391262094,1760449843136,-3002.0,0.00030044,2]
[391262096,1760449843145,-200.0,0.00030085,10]
[391262097,1760449843154,-1041.71564552,0.00030093,2]
[391262098,1760449843163,-6534.56,0.000301,2]
[391262099,1760449843172,-3002.0,0.00030102,2]
[391262100,1760449843181,-5615.0,0.00030103,7]
[391262102,1760449843190,-21513.87502507,0.00030104,2]
[391262103,1760449843199,-151.0,0.00030124,30]
[391262104,1760449843208,-178.161078,0.00030124,30]
[391262105,1760449843216,-400.0,0.00030136,120]
[391262106,1760449843226,-7256.53,0.00030136,8]
[391262107,1760449843234,-200.3671795,0.00030137,5]
[391262108,1760449843244,-162.404187,0.00030158,30]
[391262109,1760449843253,-151.0,0.00030158,30]
[391262110,1760449843262,-389.63525,0.00030158,30]
[391262111,1760449843271,-389.63525,0.00030158,30]
[391262112,1760449843281,-389.63525,0.00030158,30]
[391262113,1760449843289,-389.63525,0.00030158,30]
[391262114,1760449843298,-975.871243,0.00030158,30]
[391262116,1760449843309,-975.871243,0.00030158,30]
[391262117,1760449843318,-975.871243,0.00030158,30]
[391262118,1760449843331,-975.871243,0.00030158,30]
[391262119,1760449843341,-151.0,0.00030158,30]
[391262121,1760449843350,-1000.0,0.00030158,2]
[391262122,1760449843359,-1000.0,0.00030158,2]
[391262123,1760449843368,-1000.0,0.00030158,2]
[391262125,1760449843378,-1000.0,0.00030158,2]
[391262127,1760449843387,-1000.0,0.00030158,2]
[391262128,1760449843396,-1000.0,0.00030158,2]
[391262130,1760449843406,-1000.0,0.00030158,2]
[391262132,1760449843415,-1000.0,0.00030158,2]
[391262134,1760449843424,-1000.0,0.00030158,2]
[391262135,1760449843433,-1000.0,0.00030158,2]
[391262136,1760449843442,-1000.0,0.00030158,2]
[391262137,1760449843451,-1000.0,0.00030158,2]
[391262138,1760449843459,-1000.0,0.00030158,2]
[391262139,1760449843468,-1000.0,0.00030158,2]
[391262140,1760449843477,-1000.0,0.00030158,2]
[391262141,1760449843486,-1000.0,0.00030158,2]
[391262142,1760449843495,-1000.0,0.00030158,2]
[391262143,1760449843505,-1000.0,0.00030158,2]
[391262144,1760449843514,-1000.0,0.00030158,2]
[391262145,1760449843523,-1000.0,0.00030158,2]
[391262146,1760449843533,-1000.0,0.00030158,2]
[391262147,1760449843542,-1000.0,0.00030158,2]
[391262148,1760449843552,-1000.0,0.00030158,2]
[391262149,1760449843561,-1000.0,0.00030158,2]
[391262150,1760449843571,-1000.0,0.00030158,2]
[391262151,1760449843580,-1000.0,0.00030158,2]
[391262152,1760449843589,-1000.0,0.00030158,2]
[391262153,1760449843599,-1000.0,0.00030158,2]
[391262154,1760449843608,-1000.0,0.00030158,2]
[391262155,1760449843616,-1000.0,0.00030158,2]
[391262156,1760449843626,-1000.0,0.00030158,2]
[391262157,1760449843636,-1000.0,0.00030158,2]
[391262158,1760449843645,-1000.0,0.00030158,2]
[391262159,1760449843654,-1000.0,0.00030158,2]
[391262161,1760449843764,-1000.0,0.00030158,2]
[391262162,1760449843775,-1000.0,0.00030158,2]
[391262163,1760449843785,-1000.0,0.00030158,2]
[391262164,1760449843794,-1000.0,0.00030158,2]
[391262165,1760449843807,-1000.0,0.00030158,2]
[391262166,1760449843817,-1000.0,0.00030158,2]
[391262167,1760449843826,-225.260202,0.00030158,2]
[391262168,1760449843836,-200.54097755,0.00030166,10]
[391262169,1760449843846,-120154.1,0.00030175,3]
[391262170,1760449843854,-123239.8853397,0.00030175,2]
[391262171,1760449843867,-1645745.0766603,0.00030175,2]
[391262172,1760449843876,-151.0,0.00030175,30]
[391262173,1760449843885,-151.0,0.00030175,30]
[391262174,1760449843894,-152.84290756,0.00030175,30]
[391262175,1760449843904,-801.065592,0.00030175,30]
[391262176,1760449843913,-249.53072097,0.00030183,30]
[391262177,1760449843923,-256.0,0.00030195,2]
[391262178,1760449843931,-52060.51,0.000302,7]
[391262179,1760449843941,-5109.0,0.00030213,2]
[391262180,1760449843950,-400.0,0.00030273,120]
[391262181,1760449843959,-187.33962554,0.00030285,10]
[391262182,1760449843968,-3541.0,0.00030291,60]
[391262183,1760449843976,-425.0,0.000303,60]
[391262184,1760449843986,-200.0,0.00030301,120]
[391262185,1760449843994,-256.0,0.00030304,2]
[391262186,1760449844005,-5048.64,0.00030319,60]
[391262187,1760449844014,-496.24129189,0.00030322,26]
[391262188,1760449844024,-10000.0,0.00030325,60]
[391262189,1760449844033,-10000.0,0.00030325,60]
[391262190,1760449844042,-10000.0,0.00030325,60]
[391262191,1760449844054,-10000.0,0.00030325,60]
[391262192,1760449844063,-221.0,0.00030327,60]
[391262193,1760449844073,-5000.0,0.00030337,60]
[391262194,1760449844082,-22541.24321087,0.0003034,2]
[391262195,1760449844091,-202.31565262,0.00030341,60]
[391262196,1760449844101,-3077.53,0.00030356,60]
[391262197,1760449844110,-177.61376416,0.00030358,2]
[391262198,1760449844119,-151.0,0.00030358,30]
[391262199,1760449844128,-389.63525,0.00030358,30]
[391262200,1760449844138,-389.63525,0.00030358,30]
[391262201,1760449844147,-389.63525,0.00030358,30]
[391262202,1760449844156,-389.63525,0.00030358,30]
[391262203,1760449844166,-975.871243,0.00030358,30]
[391262204,1760449844175,-975.871243,0.00030358,30]
[391262205,1760449844184,-975.871243,0.00030358,30]
[391262206,1760449844193,-975.871243,0.00030358,30]
[391262207,1760449844203,-151.0,0.00030358,30]
[391262208,1760449844212,-178961.65744212,0.00030375,7]
[391262209,1760449844270,-1326.66510949,0.00022961,10]
[391262210,1760449844281,-3609.24489051,0.00022961,10]
[391262211,1760449844291,-250.0,0.00027912,2]
[391262212,1760449844299,-250.0,0.00027912,2]
[391262213,1760449844313,-801.065592,0.0002871,30]
[391262214,1760449844322,-801.065592,0.0003,30]
[391262215,1760449844332,-801.065592,0.00030175,30]
[391262216,1760449844341,-104843.86892868,0.00030375,7]
[391262217,1760449844352,-237225.5696747,0.00030375,7]
[391262218,1760449844362,-23845.34268919,0.00030375,7]
[391262219,1760449844510,-3e-08,0.00030375,7]
[391262220,1760449844521,-270.45202,0.00030375,7]
[391262221,1760449844532,-21976.0,0.00030375,7]
[391262222,1760449844594,-315.98676429,0.0002871,30]
[391262223,1760449844608,-485.07882771,0.0002871,30]
[391262224,1760449844617,-801.065592,0.0002871,30]
[391262225,1760449844627,-800.65092334,0.0003,30]
[391262226,1760449844638,-0.41466866,0.0003,30]
[391262227,1760449844648,-419.89031966,0.0003,30]
[391262239,1760449846098,-150.109,0.00025603,2]
[391262240,1760449846107,-150.0,0.00025603,2]
[391262241,1760449846116,-381.17527234,0.0003,30]
[391262242,1760449846125,-801.065592,0.00030175,30]
[391262243,1760449846135,-801.065592,0.00030175,30]
[391262244,1760449846144,-986461.41439183,0.00030375,7]
[391262245,1760449846157,-685.09670584,0.00030375,7]
[391262246,1760449846218,-150.0,0.00028603,2]
[391262247,1760449846228,-110050.0,0.00030375,7]
[391262248,1760449846239,-436.34609954,0.00030375,7]
[391262249,1760449846250,-22000.0,0.00030375,7]
[391262250,1760449846261,-1134.09354852,0.00030375,7]
[391262272,1760450437434,5000.0,0.00018878,2]
[391262273,1760450445486,5000.0,0.00018878,2]
[391262274,1760450461519,0.01,0.00018878,2]
[391262275,1760450461566,4999.99,0.00018878,2]
[391262276,1760450469891,5000.0,0.00018878,2]
[391262277,1760450485915,5000.0,0.00018878,2]
[391262278,1760450493878,0.01,0.00018878,2]
[391262279,1760450493905,4999.99,0.00018878,2]
[391262280,1760450509282,5000.0,0.00018878,2]
[391262281,1760450517387,0.02,0.00018878,2]
[391262282,1760450517411,4999.98,0.00018878,2]
[391262284,1760450532970,5000.0,0.00018878,2]
[391262285,1760450540857,0.03,0.00018878,2]
[391262286,1760450540883,4999.97,0.00018878,2]
[391262288,1760450556862,5000.0,0.00018878,2]
[391262289,1760450564896,0.04,0.00018878,2]
[391262290,1760450564921,4999.96,0.00018878,2]
[391262291,1760450580826,5000.0,0.00018878,2]
[391262292,1760450589207,0.05,0.00018878,2]
[391262293,1760450589229,4999.95,0.00018878,2]
[391262297,1760450604655,5000.0,0.00018878,2]
[391262298,1760450613127,0.06,0.00018878,2]
[391262299,1760450613149,4999.94,0.00018878,2]
[391262302,1760450628650,5000.0,0.00018878,2]
[391262303,1760450636795,5000.0,0.00018878,2]
[391262304,1760450652445,0.01,0.00018878,2]
[391262305,1760450652471,4999.99,0.00018878,2]
[391262306,1760450660390,5000.0,0.00018878,2]
[391262307,1760450675881,0.02,0.00018878,2]
[391262308,1760450675906,4999.98,0.00018878,2]
[391262309,1760450684080,5000.0,0.00018878,2]
[391262310,1760450700118,0.03,0.00018878,2]
[391262311,1760450700146,4999.97,0.00018878,2]
[391262312,1760450705772,1000.0,0.00028493,120]
[391262313,1760450706865,5000.04,0.00018773,2]
[391262314,1760450706891,6536.5600708,0.00018773,2]
[391262315,1760450708614,3463.4499292,0.00018878,2]
[391262316,1760450708638,1536.5500708,0.00018878,2]
[391262317,1760450724700,5000.0,0.00018878,2]
[391262318,1760450728098,1000.0,0.00028493,120]
[391262319,1760450732700,3463.4599292,0.00018878,2]
[391262320,1760450732723,1536.5400708,0.00018878,2]
[391262321,1760450755545,5000.0,0.00018878,2]
[391262322,1760450779118,3463.4699292,0.00018878,2]
[391262323,1760450779140,1536.5300708,0.00018878,2]
[391262324,1760450802298,5000.0,0.00018878,2]
[391262326,1760450813396,3463.4799292,0.00018682,2]
[391262327,1760450813418,239.8868381,0.00018682,2]
[391262328,1760450825453,5000.0,0.00018878,2]
[391262329,1760450847955,4760.1231619,0.00018878,2]
[391262330,1760450847978,239.8768381,0.00018878,2]
[391262331,1760450870741,5000.0,0.00018878,2]
[391262332,1760450893741,4760.1331619,0.00018878,2]
[391262333,1760450893764,239.8668381,0.00018878,2]
[391262334,1760450898232,-394.4989019,0.00018886,2]
[391262335,1760450944971,1000.0,0.00028493,120]
[391262361,1760451032086,-1060.911764,0.00018986,2]
[391262363,1760451032096,-640.65019034,0.00018986,2]
[391262369,1760451032147,-25.34980966,0.00018986,2]
[391262371,1760451032156,-150.0,0.00018986,2]
[391262373,1760451032166,-300.0,0.00019135,2]
[391262375,1760451032175,-883.0,0.00019135,2]
[391262377,1760451032185,-160.0,0.00019135,2]
[391262379,1760451032194,-200.0,0.00019136,2]
[391262381,1760451032203,-255.831238,0.00019136,2]
[391262383,1760451032213,-500.0,0.00019136,2]
[391262385,1760451032222,-999.9508647,0.00019136,2]
[391262387,1760451032232,-300.0,0.00019518,2]
[391262389,1760451032241,-300.0,0.00019518,2]
[391262391,1760451032250,-300.0,0.00019518,2]
[391262393,1760451032259,-300.0,0.00019518,2]
[391262395,1760451032268,-300.0,0.00019518,2]
[391262397,1760451032278,-300.0,0.00019518,2]
[391262399,1760451032291,-300.0,0.00019518,2]
[391262403,1760451032300,-300.0,0.00019518,2]
[391262406,1760451032310,-300.0,0.00019518,2]
[391262409,1760451032319,-300.0,0.00019518,2]
[391262412,1760451032329,-300.0,0.00019518,2]
[391262414,1760451032338,-300.0,0.00019518,2]
[391262416,1760451032347,-300.0,0.00019518,2]
[391262418,1760451032356,-300.0,0.00019518,2]
[391262420,1760451032366,-300.0,0.00019518,2]
[391262422,1760451032375,-172.5,0.00019586,2]
[391262424,1760451032385,-160.72361093,0.00020092,2]
[391262426,1760451032394,-500.0,0.00020173,2]
[391262428,1760451032404,-500.0,0.00020173,2]
[391262430,1760451032413,-195.0,0.00020186,2]
[391262432,1760451032422,-494.24,0.00020186,3]
[391262434,1760451032431,-247.12,0.00020186,3]
[391262436,1760451032441,-741.38,0.00020186,3]
[391262438,1760451032450,-500.0,0.00020191,2]
[391262440,1760451032459,-500.0,0.00020191,2]
[391262442,1760451032468,-327.64120554,0.00020191,2]
[391262444,1760451032478,-214.04749863,0.00020192,2]
[391262446,1760451032487,-445.80610515,0.00020192,2]
[391262448,1760451032497,-500.0,0.00020192,2]
[391262450,1760451032506,-500.0,0.00020192,2]
[391262452,1760451032515,-500.0,0.00020192,2]
[391262454,1760451032524,-438.68563206,0.00020192,2]
[391262456,1760451032533,-500.0,0.00020192,2]
[391262458,1760451032549,-500.0,0.00020192,2]
[391262473,1760451032692,-500.0,0.00020192,2]
[391262476,1760451032706,-500.0,0.00020192,2]
[391262478,1760451032716,-500.0,0.00020192,2]
[391262480,1760451032726,-559.94043585,0.00020192,2]
[391262482,1760451032736,-500.0,0.00020192,2]
[391262484,1760451032747,-500.0,0.00020192,2]
[391262486,1760451032756,-500.0,0.00020192,2]
[391262488,1760451032766,-500.0,0.00020192,2]
[391262490,1760451032776,-500.0,0.00020192,2]
[391262492,1760451032786,-500.0,0.00020192,2]
[391262493,1760451032803,-500.0,0.00020192,2]
[391262495,1760451032813,-500.0,0.00020192,2]